bitfinex-derivatives/quotes_SOLF0:USTF0_20220104
["timestamp","ask_amount","ask_price","bid_price","bid_amount"]
[1641302764603,3.29816173,171.06,171.03,27.66479]
[1641302764803,3.29816173,171.06,170.95,33.14079]
[1641302765005,3.29816173,171.06,170.96,8.11319012]
[1641302765503,3.29816173,171.07,170.96,8.11319012]
[1641302766204,3.29816173,171.07,170.95,33.14079]
[1641302766403,32.9537095,171.05,170.99,27.66479]
[1641302767404,41.54080721,171.07,170.99,27.66479]
[1641302767804,3.29862083,171.06,170.99,27.66479]
[1641302768004,5.8455603,171.04,170.95,27.66479]
[1641302768405,3.29862083,171.03,170.99,6.0]
[1641302769004,32.9537095,171.02,170.99,6.0]
[1641302769504,3.29862083,171.01,170.99,6.0]
[1641302771109,5.8455603,171.04,170.99,6.0]
[1641302772306,5.8455603,171.04,171.0,0.6598203]
[1641302772506,3.29910151,171.03,171.0,0.6598203]
[1641302775613,3.29910151,171.07,170.99,6.0]
[1641302777115,3.29910151,171.07,170.99,12.28]
[1641302779617,3.29910151,171.07,171.0,0.65967238]
[1641302780719,3.29910151,171.07,171.06,27.66479]
[1641302780920,5.84231589,171.14,171.06,33.03879]
[1641302780921,3.29910151,171.09,171.06,33.03879]
[1641302781120,15.66601925,171.09,171.06,33.03879]
[1641302781320,15.66601925,171.09,171.07,0.65967238]
[1641302781723,3.29910151,171.08,171.07,0.65967238]
[1641302782123,3.29910151,171.09,171.07,0.65967238]
[1641302783126,3.29910151,171.1,171.07,0.65967238]
[1641302783326,15.66601925,171.1,171.07,0.65967238]
[1641302783826,3.29910151,171.09,171.07,0.65967238]
[1641302785430,3.29910151,171.1,171.07,0.65967238]
[1641302788231,12.36691774,171.09,171.05,0.65967238]
[1641302788633,12.36691774,171.09,171.04,6.336]
[1641302789037,3.29910151,171.08,171.01,12.36691774]
[1641302789234,5.84521861,171.05,170.99,6.0]
[1641302790335,3.29831048,171.04,171.0,0.6596621]
[1641302790935,5.43911846,171.04,171.0,2.64176126]
[1641302791535,3.29831048,171.03,171.01,2.64176126]
[1641302791736,3.29831048,171.03,171.01,7.06076126]
[1641302792136,3.29831048,171.09,171.02,0.6596621]
[1641302792535,3.29831048,171.09,171.02,2.64176126]
[1641302792735,30.96310048,171.09,171.02,2.64176126]
[1641302792934,30.96310048,171.09,171.03,0.6596621]
[1641302793135,2.14070551,171.08,171.03,2.64176126]
[1641302793535,5.43901599,171.08,171.03,2.64176126]
[1641302793736,5.43901599,171.08,171.04,1.98209916]
[1641302793936,3.29831048,171.07,171.04,2.64176126]
[1641302794236,3.29831048,171.07,171.04,1.98209916]
[1641302794438,2.14070551,171.06,171.01,4.419]
[1641302794937,2.14070551,171.06,171.02,1.98212352]
[1641302795137,3.29831048,171.05,171.02,2.64180007]
[1641302795738,3.29831048,171.05,171.03,0.65967655]
[1641302796637,3.29831048,171.05,171.03,2.64180007]
[1641302797237,3.29831048,171.07,171.04,0.65967655]
[1641302797540,12.05218901,171.07,171.04,0.65967655]
[1641302798139,3.29831048,171.06,171.03,0.65967655]
[1641302798539,3.29831048,171.06,171.0,0.65967655]
[1641302799437,3.29831048,171.07,171.0,0.65967655]
[1641302800940,12.05232889,171.07,171.0,0.65967655]
[1641302801640,3.29831048,171.06,171.0,0.65967655]
[1641302803044,63.91680998,171.06,171.0,0.65967655]
[1641302803443,3.29831048,171.05,171.0,0.65967655]
[1641302804148,12.05232889,171.05,171.0,0.65967655]
[1641302804448,3.29831048,171.04,171.0,0.65967655]
[1641302810958,36.25201998,171.04,171.0,0.65967655]
[1641302811355,3.29831048,171.03,171.0,0.65967655]
[1641302811857,32.9537095,171.04,171.0,0.65967655]
[1641302812058,32.9537095,171.04,171.0,6.34067655]
[1641302812457,2.25112992,171.03,171.01,1.8710523]
[1641302812756,2.25112992,171.03,171.01,2.53072885]
[1641302812958,32.97745783,171.09,171.01,2.53072885]
[1641302813156,32.97745783,171.09,171.02,0.65967655]
[1641302813356,32.97745783,171.09,171.06,27.66479]
[1641302813557,32.97745783,171.09,171.06,33.92679]
[1641302813757,98.69826459,171.15,171.06,33.92679]
[1641302814057,3.29743615,171.14,171.07,0.65967655]
[1641302814757,23.18725033,171.14,171.07,0.65967655]
[1641302815358,3.29743615,171.13,171.1,27.66479]
[1641302815558,3.29743615,171.13,171.1,31.92179]
[1641302815760,3.29743615,171.13,171.11,0.65967655]
[1641302816659,7.90519467,171.14,171.11,0.65967655]
[1641302817662,7.90519467,171.17,171.11,4.78086042]
[1641302818061,7.90519467,171.17,171.12,0.65967655]
[1641302818362,13.74580443,171.19,171.12,4.78086042]
[1641302818765,3.29611722,171.18,171.13,0.65967655]
[1641302819762,12.36020946,171.16,171.13,0.65967655]
[1641302821469,12.36020946,171.16,171.14,27.66479]
[1641302821665,12.36020946,171.16,171.14,34.10479]
[1641302822068,12.36020946,171.16,171.15,0.65967655]
[1641302823270,15.65646919,171.16,171.15,0.65967655]
[1641302823673,3.29625973,171.16,171.15,0.65967655]
[1641302823871,3.29625973,171.16,171.13,0.65967655]
[1641302824273,3.29625973,171.18,171.13,0.65967655]
[1641302824674,3.29625973,171.18,171.12,0.65967655]
[1641302825477,30.96104973,171.18,171.12,0.65967655]
[1641302825976,3.29625973,171.17,171.11,0.65967655]
[1641302826178,12.36258912,171.13,171.11,0.65967655]
[1641302827577,12.36258912,171.12,171.11,0.65967655]
[1641302828179,12.36258912,171.12,171.11,6.65967655]
[1641302828481,25.72375225,171.19,171.11,6.65967655]
[1641302829081,3.29673914,171.18,171.12,0.65967655]
[1641302829281,12.36245694,171.13,171.12,0.65967655]
[1641302831586,12.36245694,171.13,171.12,28.32446655]
[1641302832088,12.36048893,171.15,171.12,28.32446655]
[1641302832286,12.36048893,171.15,171.12,33.63246655]
[1641302832586,12.36048893,171.15,171.13,0.65967655]
[1641302832986,12.35991284,171.16,171.13,0.65967655]
[1641302833787,40.86496224,171.19,171.13,0.65967655]
[1641302834387,12.36039796,171.16,171.13,0.65967655]
[1641302834888,3.29707645,171.15,171.13,0.65967655]
[1641302835791,15.65747441,171.15,171.13,0.65967655]
[1641302836293,12.36039796,171.15,171.13,0.65967655]
[1641302837892,40.86496224,171.19,171.13,0.65967655]
[1641302838094,12.36233809,171.18,171.14,4.12118387]
[1641302838594,12.36233809,171.18,171.15,0.65967655]
[1641302839094,12.36233809,171.18,171.15,4.78086042]
[1641302839497,12.36233809,171.18,171.16,0.65967655]
[1641302839795,7.90519467,171.19,171.16,0.65967655]
[1641302839996,32.95976757,171.22,171.16,0.65967655]
[1641302840495,12.36162687,171.19,171.16,0.65967655]
[1641302840695,3.29634288,171.21,171.16,0.65967655]
[1641302840895,32.95976757,171.23,171.16,0.65967655]
[1641302841294,3.29608118,171.22,171.16,0.65967655]
[1641302841697,3.29608118,171.22,171.2,27.66479]
[1641302841896,32.95976757,171.27,171.2,31.84179]
[1641302842597,3.29579614,171.26,171.21,0.65967655]
[1641302843398,3.29579614,171.27,171.21,0.65967655]
[1641302844202,3.29579614,171.28,171.21,0.65967655]
[1641302845105,3.29579614,171.28,171.21,33.61944412]
[1641302845705,3.29579614,171.3,171.22,0.65967655]
[1641302845905,3.29579614,171.3,171.26,27.66479]
[1641302846106,3.29579614,171.3,171.26,6.739]
[1641302846405,3.29579614,171.3,171.27,0.65967655]
[1641302847206,3.29579614,171.3,171.2,32.95976757]
[1641302847406,5.83805243,171.28,171.2,32.95976757]
[1641302847607,5.83958656,171.22,171.2,32.95976757]
[1641302848106,33.50335371,171.25,171.2,32.95976757]
[1641302848308,5.83856371,171.25,171.19,6.615]
[1641302848708,3.29619172,171.24,171.2,0.65923834]
[1641302849107,3.29619172,171.24,171.2,33.61900591]
[1641302849611,3.29619172,171.27,171.21,0.65923834]
[1641302850513,3.29619172,171.27,171.22,32.95976757]
[1641302851214,3.29619172,171.27,171.23,0.65923834]
[1641302851414,3.29619172,171.27,171.23,39.76000591]
[1641302851816,5.83890462,171.24,171.23,39.76000591]
[1641302852014,5.83890462,171.24,171.2,45.58982135]
[1641302852216,9.13509634,171.24,171.2,45.58982135]
[1641302852616,5.83890462,171.24,171.19,27.66479]
[1641302853017,3.29620632,171.23,171.2,0.65924126]
[1641302853218,3.29620632,171.23,171.2,6.11524126]
[1641302853419,5.84026865,171.21,171.09,49.43205758]
[1641302853620,60.5359,171.2,171.09,49.43205758]
[1641302853919,60.5359,171.2,171.13,27.66479]
[1641302854122,60.5359,171.2,171.13,33.94179]
[1641302854323,60.5359,171.2,171.14,13.18005982]
[1641302854521,53.94309758,171.2,171.14,13.18005982]
[1641302854822,3.296804,171.19,171.15,0.6593608]
[1641302855424,53.94309758,171.2,171.15,0.6593608]
[1641302855623,5.83907509,171.23,171.15,0.6593608]
[1641302856124,3.29624391,171.22,171.15,0.6593608]
[1641302858227,3.29624391,171.22,171.15,6.6593608]
[1641302858429,1.84632931,171.21,171.15,6.6593608]
[1641302858626,5.83788202,171.27,171.16,0.6593608]
[1641302858825,49.43205758,171.3,171.16,0.6593608]
[1641302859627,12.4226473,171.31,171.16,0.6593608]
[1641302860026,12.4226473,171.31,171.22,27.66479]
[1641302860228,12.4226473,171.31,171.22,5.257]
[1641302860429,5.83737085,171.28,171.22,5.257]
[1641302860628,5.83771162,171.27,171.23,0.6593608]
[1641302861931,5.83703012,171.29,171.23,0.6593608]
[1641302864034,5.83703012,171.29,171.23,28.3241508]
[1641302864635,5.83703012,171.29,171.24,0.6593608]
[1641302864836,20.71941722,171.31,171.24,0.6593608]
[1641302865434,1.722e-05,171.31,171.24,0.6593608]
[1641302865837,46.0833748,171.34,171.26,5.83141383]
[1641302866042,34.4650748,171.34,171.33,55.32958]
[1641302866241,8.40708328,171.36,171.33,61.21858]
[1641302866641,8.40708328,171.36,171.34,0.6593608]
[1641302867047,5.83498658,171.35,171.33,5.889]
[1641302867241,5.83498658,171.35,171.24,57.37]
[1641302867539,8.40708328,171.36,171.24,57.37]
[1641302867841,8.40708328,171.36,171.24,63.62]
[1641302868137,8.40708328,171.36,171.29,27.66479]
[1641302868339,5.83447592,171.37,171.29,27.66479]
[1641302868540,5.83447592,171.37,171.3,0.65876452]
[1641302868939,65.67972501,171.39,171.3,0.65876452]
[1641302869142,59.8461,171.39,171.3,0.65876452]
[1641302869339,5.83413553,171.38,171.3,0.65876452]
[1641302869840,59.8461,171.39,171.3,0.65876452]
[1641302870039,59.8461,171.39,171.3,5.72376452]
[1641302870241,5.83498658,171.35,171.3,5.065]
[1641302870742,59.8461,171.39,171.31,0.65876452]
[1641302871344,5.83430572,171.37,171.31,0.65876452]
[1641302872146,5.83430572,171.37,171.28,0.65876452]
[1641302872343,32.93565969,171.36,171.28,0.65876452]
[1641302872543,32.93565969,171.36,171.32,0.65876452]
[1641302872946,32.93565969,171.36,171.28,0.65876452]
[1641302873544,5.83583788,171.33,171.28,0.65876452]
[1641302873745,38.77149757,171.33,171.28,0.65876452]
[1641302874344,5.83583788,171.33,171.28,0.65876452]
[1641302874544,3.29447622,171.32,171.28,0.65876452]
[1641302875646,38.76979522,171.38,171.28,0.65876452]
[1641302875846,38.76979522,171.38,171.28,6.88076452]
[1641302876047,5.83413553,171.38,171.29,12.3511548]
[1641302876247,3.2934716,171.37,171.34,27.66479]
[1641302876447,3.2934716,171.37,171.34,33.66979]
[1641302876747,3.2934716,171.38,171.35,0.65876452]
[1641302877148,3.2934716,171.4,171.35,0.65876452]
[1641302877547,3.2934716,171.41,171.35,0.65876452]
[1641302878947,5.83277436,171.42,171.34,33.66979]
[1641302879348,3.29276587,171.41,171.35,0.65855317]
[1641302880150,27.66479,171.4,171.35,0.65855317]
[1641302880552,3.29276587,171.39,171.35,0.65855317]
[1641302880952,3.29276587,171.39,171.32,0.65855317]
[1641302881152,3.29276587,171.39,171.32,13.00970797]
[1641302881352,3.29276587,171.41,171.32,13.00970797]
[1641302881752,3.29276587,171.41,171.32,6.53255317]
[1641302881953,3.29276587,171.41,171.33,0.65855317]
[1641302882154,30.95755587,171.41,171.33,0.65855317]
[1641302882353,3.29276587,171.41,171.33,0.65855317]
[1641302884154,3.29276587,171.41,171.35,27.66479]
[1641302884353,3.29276587,171.41,171.33,0.65855317]
[1641302884554,3.29276587,171.41,171.36,0.65855317]
[1641302884954,3.29276587,171.41,171.35,0.65855317]
[1641302885157,5.83447592,171.37,171.35,0.65855317]
[1641302885756,3.29276587,171.36,171.32,0.65855317]
[1641302888361,3.29276587,171.36,171.32,6.65855317]
[1641302889061,3.29276587,171.36,171.33,0.65855317]
[1641302893765,5.83549733,171.34,171.33,0.65855317]
[1641302893967,5.83549733,171.34,171.32,5.317e-05]
[1641302895171,5.83549733,171.34,171.32,0.65882978]
[1641302895872,12.35058646,171.35,171.32,0.65882978]
[1641302896071,12.35058646,171.35,171.32,6.14682978]
[1641302896471,12.35058646,171.36,171.33,0.65877661]
[1641302897073,66.32856535,171.38,171.33,0.65877661]
[1641302897074,78.67915181,171.38,171.33,0.65877661]
[1641302897674,78.67915181,171.38,171.32,0.65882978]
[1641302897873,3.29354597,171.37,171.32,0.65882978]
[1641302898574,18.18455181,171.38,171.32,0.65882978]
[1641302898575,12.35058646,171.38,171.32,0.65882978]
[1641302898776,12.35058646,171.38,171.32,7.42882978]
[1641302899178,12.35058646,171.38,171.33,0.65877661]
[1641302899676,13.98119236,171.4,171.33,8.28742266]
[1641302899878,13.98119236,171.4,171.33,7.62864605]
[1641302900176,13.98119236,171.4,171.35,27.66479]
[1641302900380,3.29302473,171.39,171.35,27.66479]
[1641302900781,3.29302473,171.39,171.36,0.65877661]
[1641302901679,3.29302473,171.39,171.36,6.49377661]
[1641302902079,1.6306059,171.38,171.37,0.65877661]
[1641302902678,7.92361579,171.38,171.37,0.65877661]
[1641302907085,4.92363063,171.38,171.37,0.65877661]
[1641302907285,1.6306059,171.38,171.37,0.65877661]
[1641302908087,2.99998516,171.39,171.37,3.14469783]
[1641302908587,1.6306059,171.43,171.37,3.14469783]
[1641302908787,1.6306059,171.43,171.38,0.65877661]
[1641302908989,2.99998516,171.39,171.38,0.65877661]
[1641302909288,2.99998516,171.39,171.38,3.14469783]
[1641302911789,12.35058646,171.44,171.38,3.14469783]
[1641302911993,2.99998516,171.4,171.38,3.14469783]
[1641302912191,2.99998516,171.41,171.38,3.14469783]
[1641302912390,12.35058646,171.43,171.39,0.65877661]
[1641302912590,2.99998516,171.4,171.39,3.14469783]
[1641302912992,6.29215984,171.42,171.39,3.14469783]
[1641302913194,2.99998516,171.4,171.39,3.14469783]
[1641302913393,83.58334036,171.45,171.4,0.65877661]
[1641302913394,12.35058646,171.43,171.4,0.65877661]
[1641302913592,2.99998516,171.41,171.4,0.65877661]
[1641302913993,4.62890874,171.41,171.4,0.65877661]
[1641302914392,1.62892358,171.41,171.38,27.66479]
[1641302914992,1.62892358,171.41,171.39,0.65877661]
[1641302915193,2.99998516,171.44,171.39,6.00277661]
[1641302915392,5.8317539,171.45,171.39,6.00277661]
[1641302915594,2.99998516,171.44,171.39,6.00277661]
[1641302915793,6.29160753,171.44,171.4,0.65877661]
[1641302916396,3.29162237,171.43,171.41,27.66479]
[1641302916595,2.99998516,171.45,171.41,27.66479]
[1641302916796,3.29133475,171.45,171.42,0.65877661]
[1641302917098,77.89108646,171.47,171.42,3.14469783]
[1641302917295,2.99998516,171.43,171.42,3.14469783]
[1641302917496,2.99998516,171.44,171.42,3.14469783]
[1641302917695,1.6579074,171.43,171.42,3.14469783]
[1641302918297,4.65789256,171.43,171.42,3.14469783]
[1641302918698,1.6579074,171.46,171.42,3.14469783]
[1641302918900,2.99998516,171.44,171.42,3.14469783]
[1641302919099,2.99998516,171.43,171.42,3.14469783]
[1641302919299,2.99998516,171.43,171.42,2.48592122]
[1641302920300,6.29170909,171.43,171.42,2.48592122]
[1641302920500,6.29170909,171.43,171.4,12.3511548]
[1641302920701,2.99998516,171.41,171.4,12.3511548]
[1641302921101,2.99998516,171.44,171.4,12.3511548]
[1641302921304,2.99998516,171.43,171.4,4.291]
[1641302921504,6.29157193,171.43,171.4,4.291]
[1641302921902,2.99998516,171.43,171.4,4.291]
[1641302922203,12.35058646,171.45,171.4,4.291]
[1641302922402,2.99998516,171.42,171.4,4.291]
[1641302922603,2.99998516,171.42,171.38,40.0159448]
[1641302924105,3.29190432,171.41,171.38,40.0159448]
[1641302924304,3.29190432,171.41,171.38,27.66479]
[1641302924702,2.99998516,171.39,171.38,27.66479]
[1641302925203,2.99998516,171.39,171.34,27.66479]
[1641302925204,2.99998516,171.39,171.36,12.3511548]
[1641302926005,2.99998516,171.37,171.36,12.3511548]
[1641302926206,2.99998516,171.37,171.35,12.3511548]
[1641302926409,2.99998516,171.37,171.35,21.64463441]
[1641302926810,3.0,171.42,171.35,21.64463441]
[1641302927009,2.99998516,171.41,171.35,26.75763441]
[1641302927210,3.29229869,171.41,171.35,5.113]
[1641302927609,12.35058646,171.42,171.35,5.113]
[1641302928410,12.35058646,171.44,171.4,4.11465532]
[1641302928609,12.35058646,171.44,171.4,9.20065532]
[1641302928808,15.35057162,171.44,171.4,9.20065532]
[1641302929008,12.35058646,171.44,171.4,9.20065532]
[1641302929210,65.5746,171.45,171.4,17.4371548]
[1641302929408,2.99998516,171.41,171.4,17.4371548]
[1641302930308,2.99998516,171.41,171.4,5.086]
[1641302930909,65.5746,171.45,171.4,5.086]
[1641302931109,2.99998516,171.42,171.4,5.086]
[1641302932010,2.99998516,171.44,171.4,5.086]
[1641302932210,65.5746,171.45,171.4,5.086]
[1641302932411,65.5746,171.45,171.42,27.66479]
[1641302932612,2.99998516,171.44,171.42,27.66479]
[1641302933114,18.18115028,171.48,171.42,27.66479]
[1641302933713,2.99998516,171.45,171.42,27.66479]
[1641302934115,3.29109611,171.47,171.42,27.66479]
[1641302934315,5.83056382,171.48,171.42,27.66479]
[1641302934517,2.99998516,171.44,171.42,27.66479]
[1641302934714,2.99998516,171.44,171.43,0.6582037]
[1641302936119,4.65731906,171.44,171.43,0.6582037]
[1641302936318,4.65731906,171.44,171.41,0.6582037]
[1641302936518,2.99998516,171.43,171.41,28.3229937]
[1641302936918,2.99998516,171.43,171.42,0.6582037]
[1641302937121,18.18115028,171.48,171.42,0.6582037]
[1641302937320,2.99998516,171.43,171.42,0.6582037]
[1641302938919,4.65316118,171.43,171.42,0.6582037]
[1641302941225,1.65317602,171.43,171.42,3.11471016]
[1641302941624,4.65316118,171.43,171.42,3.11471016]
[1641302942230,1.65317602,171.43,171.42,3.11471016]
[1641302943330,12.35058646,171.47,171.42,3.11471016]
[1641302943528,2.99998516,171.44,171.42,9.72471016]
[1641302944028,2.99998516,171.44,171.43,0.6582037]
[1641302944630,2.99998516,171.44,171.43,3.11471016]
[1641302945829,6.29149751,171.44,171.43,3.11471016]
[1641302946230,2.99998516,171.44,171.43,3.11471016]
[1641302946632,4.65738182,171.44,171.43,3.11471016]
[1641302947434,1.65739666,171.44,171.43,3.11471016]
[1641302948134,1.65739666,171.46,171.43,3.11471016]
[1641302948534,1.65739666,171.46,171.45,27.66479]
[1641302948934,1.65739666,171.47,171.45,32.43645536]
[1641302949334,1.65739666,171.47,171.46,0.6582037]
[1641302949534,4.65738182,171.47,171.46,7.2102037]
[1641302949835,7.94825564,171.47,171.46,7.2102037]
[1641302954841,4.94827048,171.47,171.46,7.2102037]
[1641302955141,1.65739666,171.47,171.46,7.2102037]
[1641302956342,1.65739666,171.47,171.46,13.78031523]
[1641302956943,15.35057162,171.5,171.46,13.78031523]
[1641302957143,12.35058646,171.5,171.46,13.78031523]
[1641302957644,12.35058646,171.52,171.47,0.6582037]
[1641302958342,15.35057162,171.52,171.47,0.6582037]
[1641302958544,2.99998516,171.52,171.51,27.66479]
[1641302958743,2.99998516,171.52,171.51,33.66079]
[1641302958944,2.99998516,171.52,171.51,34.3189937]
[1641302959145,2.99998516,171.53,171.51,34.3189937]
[1641302959544,2.99998516,171.53,171.51,38.43126978]
[1641302959945,2.99998516,171.53,171.52,0.6582037]
[1641302960648,2.99998516,171.53,171.52,4.77047978]
[1641302960855,6.28971508,171.53,171.52,4.77047978]
[1641302961449,15.11925921,171.53,171.48,12.3511548]
[1641302961653,9.11927405,171.53,171.5,4.11226488]
[1641302961850,2.99998516,171.51,171.5,1e-08]
[1641302962549,6.29068039,171.51,171.5,1e-08]
[1641302962751,6.29068039,171.51,171.47,0.65813905]
[1641302962951,2.99998516,171.49,171.47,0.65813905]
[1641302963154,2.99998516,171.48,171.47,0.65813905]
[1641302963552,2.99998516,171.5,171.43,0.65813905]
[1641302963753,12.33872194,171.51,171.43,28.21702735]
[1641302963953,12.33872194,171.51,171.43,32.21702735]
[1641302964353,12.33872194,171.51,171.45,12.3511548]
[1641302964554,12.33872194,171.53,171.5,27.66479]
[1641302964954,2.99998516,171.51,171.47,6.429]
[1641302965154,2.99998516,171.48,171.46,0.65813905]
[1641302965354,3.29034813,171.5,171.45,12.3511548]
[1641302965555,2.99998516,171.48,171.45,12.3511548]
[1641302965757,2.99998516,171.47,171.45,12.3511548]
[1641302965955,2.99998516,171.46,171.45,12.3511548]
[1641302966555,9.50798516,171.46,171.45,12.3511548]
[1641302966755,9.50798516,171.46,171.41,32.93565969]
[1641302966756,15.79890636,171.46,171.41,12.3511548]
[1641302966954,9.7989212,171.46,171.41,12.3511548]
[1641302967154,2.99998516,171.42,171.41,12.3511548]
[1641302967557,6.508,171.46,171.41,12.3511548]
[1641302967756,15.33872194,171.49,171.41,12.3511548]
[1641302968358,12.33872194,171.47,171.39,12.3511548]
[1641302968556,15.33872194,171.47,171.39,12.3511548]
[1641302968956,12.33872194,171.47,171.39,12.3511548]
[1641302969157,2.99998516,171.42,171.39,12.3511548]
[1641302969558,12.33872194,171.48,171.4,12.3511548]
[1641302969758,2.99998516,171.42,171.4,12.3511548]
[1641302969957,6.29101215,171.47,171.4,12.3511548]
[1641302970558,2.99998516,171.41,171.4,12.3511548]
[1641302971363,27.66479,171.47,171.4,12.3511548]
[1641302971560,2.99998516,171.41,171.4,17.2071548]
[1641302971760,2.99998516,171.41,171.4,4.856]
[1641302972562,2.99998516,171.41,171.39,12.3511548]
[1641302972761,21.17081595,171.44,171.36,40.0159448]
[1641302972961,2.99998516,171.4,171.36,40.0159448]
[1641302973162,65.43417198,171.43,171.36,40.0159448]
[1641302973362,2.99998516,171.38,171.36,40.0159448]
[1641302973564,62.1424,171.43,171.36,40.0159448]
[1641302973763,2.99998516,171.4,171.36,46.4589448]
[1641302973964,2.99998516,171.4,171.37,9.13589977]
[1641302974364,2.99998516,171.4,171.38,12.34258084]
[1641302974564,62.1424,171.43,171.38,12.34258084]
[1641302974764,5.83209401,171.44,171.38,12.34258084]
[1641302975365,2.99998516,171.39,171.38,12.34258084]
[1641302975865,2.99998516,171.39,171.37,21.47848061]
[1641302976166,8.83209401,171.44,171.37,21.47848061]
[1641302976366,2.99998516,171.38,171.37,21.47848061]
[1641302976769,2.99998516,171.41,171.37,21.47848061]
[1641302976968,5.83209401,171.44,171.36,12.34258084]
[1641302976969,18.17081595,171.44,171.36,12.34258084]
[1641302977167,2.99998516,171.41,171.36,12.34258084]
[1641302977368,2.99998516,171.42,171.39,12.34258084]
[1641302977569,61.717,171.46,171.39,16.86658084]
[1641302977969,64.717,171.46,171.39,16.86658084]
[1641302978671,6.29130545,171.45,171.39,16.86658084]
[1641302979069,61.717,171.46,171.39,16.86658084]
[1641302979070,3.0,171.44,171.39,16.86658084]
[1641302979271,3.0,171.43,171.39,12.34258084]
[1641302979473,3.0,171.42,171.36,21.47842762]
[1641302979671,3.0,171.41,171.36,21.47842762]
[1641302979872,12.3411529,171.44,171.36,21.47842762]
[1641302980074,3.0,171.43,171.36,21.47842762]
[1641302980573,27.66479,171.4,171.37,0.65834797]
[1641302981073,30.66479,171.4,171.37,0.65834797]
[1641302981572,27.66479,171.4,171.37,0.65834797]
[1641302981773,3.0,171.39,171.37,0.65834797]
[1641302982173,3.0,171.39,171.36,0.65834797]
[1641302982476,30.66479,171.4,171.36,0.65834797]
[1641302983376,3.0,171.39,171.36,0.65834797]
[1641302983576,27.66479,171.4,171.36,0.65834797]
[1641302983876,27.66479,171.4,171.36,5.43634797]
[1641302984276,27.66479,171.4,171.37,0.65834797]
[1641302984479,30.66479,171.4,171.37,0.65834797]
[1641302984876,27.66479,171.4,171.37,0.65834797]
[1641302985576,27.66479,171.42,171.37,0.65834797]
[1641302986977,3.0,171.42,171.37,0.65834797]
[1641302987380,12.12526882,171.41,171.37,0.65834797]
[1641302987980,8.83311459,171.41,171.37,0.65834797]
[1641302988379,5.83311459,171.41,171.37,0.65834797]
[1641302988780,27.66479,171.41,171.37,0.65834797]
[1641302989280,3.0,171.38,171.37,0.65834797]
[1641302989680,36.49790459,171.41,171.37,0.65834797]
[1641302989880,3.0,171.4,171.37,0.65834797]
[1641302990080,6.29217748,171.4,171.37,0.65834797]
[1641302990480,45.83905749,171.41,171.37,0.65834797]
[1641302991682,33.49790459,171.41,171.37,0.65834797]
[1641302991882,36.49790459,171.41,171.37,0.65834797]
[1641302992583,33.49790459,171.41,171.37,0.65834797]
[1641302993683,3.0,171.38,171.37,0.65834797]
[1641302994083,3.0,171.39,171.37,0.65834797]
[1641302994682,3.0,171.4,171.37,0.65834797]
[1641302994982,3.0,171.39,171.37,0.65834797]
[1641302995184,3.0,171.4,171.37,0.65834797]
[1641302995382,36.49790459,171.41,171.37,0.65834797]
[1641302995785,33.49790459,171.41,171.37,0.65834797]
[1641302996787,5.83311459,171.41,171.37,0.65834797]
[1641302997488,3.0,171.4,171.33,12.34258084]
[1641302997786,5.83345486,171.4,171.37,5.747]
[1641302998289,1.7445849,171.39,171.38,0.65840455]
[1641302998890,1.7445849,171.42,171.38,3.02870914]
[1641302999892,1.7445849,171.42,171.39,0.65840455]
[1641303000091,1.7445849,171.42,171.39,3.02870914]
[1641303000492,1.7445849,171.42,171.4,0.65840455]
[1641303000694,1.7445849,171.42,171.4,3.02870914]
[1641303001294,1.7445849,171.42,171.41,0.65840455]
[1641303001500,1.7445849,171.42,171.41,6.26140455]
[1641303001898,1.7445849,171.42,171.41,8.63170914]
[1641303002599,5.83243417,171.43,171.41,8.63170914]
[1641303003198,5.83243417,171.43,171.42,0.65840455]
[1641303004001,7.57584136,171.43,171.42,3.02870914]
[1641303004401,7.57584136,171.43,171.42,7.46070914]
[1641303005200,7.57584136,171.43,171.42,5.09040455]
[1641303006202,7.57584136,171.43,171.42,7.46089044]
[1641303007100,7.57584136,171.43,171.42,5.09040455]
[1641303007302,7.57584136,171.43,171.42,0.65840455]
[1641303007700,7.57584136,171.43,171.38,0.65840455]
[1641303008501,10.57584136,171.43,171.38,0.65840455]
[1641303008701,1.74340719,171.42,171.39,2.37041531]
[1641303009107,27.66479,171.4,171.39,2.37041531]
[1641303009505,27.66479,171.4,171.34,12.34258084]
[1641303009506,1.74340719,171.4,171.34,12.34258084]
[1641303010304,4.74340719,171.4,171.34,12.34258084]
[1641303010507,3.0,171.4,171.34,12.34258084]
[1641303011105,30.66479,171.4,171.34,12.34258084]
[1641303011405,27.66479,171.4,171.34,12.34258084]
[1641303011605,4.74340719,171.39,171.34,12.34258084]
[1641303012408,3.0,171.39,171.33,12.34258084]
[1641303012808,30.66479,171.4,171.33,12.34258084]
[1641303013009,30.66479,171.4,171.33,18.20158084]
[1641303013208,1.74468666,171.38,171.33,18.20158084]
[1641303013709,1.74468666,171.39,171.34,2.37041531]
[1641303014409,12.3411529,171.41,171.34,2.37041531]